fUSD/lending_fUSD_20250111
["ID","MTS","AMOUNT","RATE_DAILY","PERIOD"]
[348504420,1736594521596,-500.0,9.899e-05,2]
[348504421,1736594521616,-500.0,9.899e-05,2]
[348504422,1736594521637,-500.0,9.899e-05,2]
[348504423,1736594521658,-500.0,9.899e-05,2]
[348504424,1736594521680,-500.0,9.899e-05,2]
[348504425,1736594521703,-1569.02,9.899e-05,2]
[348504426,1736594521724,-500.0,9.899e-05,2]
[348504427,1736594521745,-500.0,9.899e-05,2]
[348504428,1736594521766,-500.0,9.899e-05,2]
[348504429,1736594521788,-884.07,9.899e-05,2]
[348504430,1736594521809,-500.0,9.899e-05,2]
[348504431,1736594521832,-500.0,9.899e-05,2]
[348504432,1736594521858,-500.0,9.899e-05,2]
[348504433,1736594521879,-500.0,9.899e-05,2]
[348504434,1736594521901,-500.0,9.899e-05,2]
[348504435,1736594521923,-500.0,9.899e-05,2]
[348504436,1736594521948,-878.01,9.899e-05,2]
[348504437,1736594521971,-500.0,9.899e-05,2]
[348504438,1736594521993,-500.0,9.899e-05,2]
[348504439,1736594522015,-500.0,9.899e-05,2]
[348504440,1736594522036,-500.0,9.899e-05,2]
[348504441,1736594522059,-1100.0,9.9e-05,3]
[348504442,1736594522083,-23741.407,9.9e-05,2]
[348504443,1736594522105,-5213.7101,9.9e-05,2]
[348504444,1736594522129,-4305.5978,9.9e-05,2]
[348504445,1736594522155,-2234.38818257,9.907e-05,2]
[348504446,1736594522176,-900.0,9.938e-05,2]
[348504447,1736594522198,-150.848698,9.973e-05,2]
[348504448,1736594522220,-150.848698,9.973e-05,2]
[348504449,1736594522241,-160.838678,9.973e-05,2]
[348504450,1736594522265,-151.847696,9.973e-05,2]
[348504451,1736594522479,-428.427,9.994e-05,2]
[348504452,1736594522503,-697.12,9.996e-05,2]
[348504453,1736594522528,-736.0,9.996e-05,2]
[348504454,1736594522553,-500.0,9.996e-05,2]
[348504455,1736594522578,-984.37,9.996e-05,2]
[348504456,1736594522600,-1214.82,9.996e-05,2]
[348504457,1736594522622,-724.21,9.996e-05,2]
[348504458,1736594522646,-500.0,9.997e-05,2]
[348504459,1736594522667,-1280.1786,9.997e-05,2]
[348504460,1736594522690,-500.0,9.997e-05,2]
[348504461,1736594522713,-1366.31,9.997e-05,2]
[348504462,1736594522735,-500.0,9.997e-05,2]
[348504463,1736594522757,-500.0,9.997e-05,2]
[348504464,1736594522780,-886.79,9.997e-05,2]
[348504465,1736594522802,-599.42,9.997e-05,2]
[348504466,1736594522829,-912.28,9.997e-05,2]
[348504467,1736594522851,-1000.0,9.997e-05,2]
[348504468,1736594522873,-557.51,9.997e-05,2]
[348504469,1736594522894,-500.0,9.997e-05,2]
[348504470,1736594522916,-1336.47,9.997e-05,2]
[348504471,1736594522938,-545.52,9.997e-05,2]
[348504472,1736594522963,-532.89,9.997e-05,2]
[348504473,1736594522988,-500.0,9.997e-05,2]
[348504474,1736594523011,-557.78,9.998e-05,2]
[348504475,1736594523037,-500.0,9.998e-05,2]
[348504476,1736594523061,-545.99,9.998e-05,2]
[348504477,1736594523086,-500.0,9.998e-05,2]
[348504478,1736594523110,-500.0,9.998e-05,2]
[348504479,1736594523132,-500.0,9.998e-05,2]
[348504480,1736594523155,-500.0,9.998e-05,2]
[348504481,1736594523178,-500.0,9.998e-05,2]
[348504482,1736594523200,-500.0,9.998e-05,2]
[348504483,1736594523222,-500.0,9.998e-05,2]
[348504484,1736594523245,-655.12,9.998e-05,2]
[348504485,1736594523268,-500.0,9.998e-05,2]
[348504486,1736594523291,-500.0,9.998e-05,2]
[348504487,1736594523314,-500.0,9.998e-05,2]
[348504488,1736594523338,-500.0,9.998e-05,2]
[348504489,1736594523361,-500.0,9.998e-05,2]
[348504490,1736594523384,-500.0,9.998e-05,2]
[348504491,1736594523408,-500.0,9.998e-05,2]
[348504492,1736594523431,-500.0,9.998e-05,2]
[348504493,1736594523455,-565.8,9.998e-05,2]
[348504494,1736594523477,-500.0,9.998e-05,2]
[348504495,1736594523501,-558.0,9.998e-05,2]
[348504496,1736594523525,-500.0,9.998e-05,2]
[348504497,1736594523551,-500.0,9.998e-05,2]
[348504498,1736594523575,-500.0,9.998e-05,2]
[348504499,1736594523601,-500.0,9.998e-05,2]
[348504500,1736594523628,-500.0,9.998e-05,2]
[348504501,1736594523651,-500.0,9.998e-05,2]
[348504502,1736594523674,-500.0,9.998e-05,2]
[348504503,1736594523697,-500.0,9.998e-05,2]
[348504504,1736594523720,-500.0,9.998e-05,2]
[348504505,1736594523743,-500.0,9.998e-05,2]
[348504506,1736594523765,-500.0,9.998e-05,2]
[348504507,1736594523787,-500.0,9.998e-05,2]
[348504508,1736594523812,-500.0,9.998e-05,2]
[348504509,1736594523836,-500.0,9.998e-05,2]
[348504510,1736594523858,-500.0,9.998e-05,2]
[348504511,1736594523881,-500.0,9.998e-05,2]
[348504512,1736594523902,-500.0,9.998e-05,2]
[348504513,1736594523925,-500.0,9.998e-05,2]
[348504514,1736594523955,-500.0,9.998e-05,2]
[348504515,1736594523979,-500.0,9.998e-05,2]
[348504516,1736594524003,-500.0,9.998e-05,2]
[348504517,1736594524026,-500.0,9.998e-05,2]
[348504518,1736594524051,-500.0,9.998e-05,2]
[348504519,1736594524074,-500.0,9.998e-05,2]
[348504520,1736594524101,-522.93,9.998e-05,2]
[348504521,1736594524123,-500.0,9.998e-05,2]
[348504522,1736594524147,-500.0,9.998e-05,2]
[348504523,1736594524171,-500.0,9.998e-05,2]
[348504524,1736594524195,-500.0,9.998e-05,2]
[348504525,1736594524219,-500.0,9.998e-05,2]
[348504526,1736594524240,-500.0,9.998e-05,2]
[348504527,1736594524263,-500.0,9.998e-05,2]
[348504528,1736594524286,-500.0,9.998e-05,2]
[348504529,1736594524310,-508.86,9.998e-05,2]
[348504530,1736594524333,-560.75,9.998e-05,2]
[348504531,1736594524355,-500.0,9.998e-05,2]
[348504532,1736594524379,-573.3,9.998e-05,2]
[348504533,1736594524402,-500.0,9.998e-05,2]
[348504534,1736594524425,-500.0,9.998e-05,2]
[348504535,1736594524448,-575.72,9.998e-05,2]
[348504536,1736594524470,-500.0,9.998e-05,2]
[348504537,1736594524492,-500.0,9.998e-05,2]
[348504538,1736594524514,-500.0,9.998e-05,2]
[348504539,1736594524538,-500.0,9.998e-05,2]
[348504540,1736594524562,-500.0,9.998e-05,2]
[348504541,1736594524589,-500.0,9.998e-05,2]
[348504542,1736594524612,-500.0,9.998e-05,2]
[348504543,1736594524638,-500.0,9.998e-05,2]
[348504544,1736594524663,-500.0,9.998e-05,2]
[348504545,1736594524685,-500.0,9.998e-05,2]
[348504546,1736594524708,-556.8,9.998e-05,2]
[348504547,1736594524732,-500.0,9.998e-05,2]
[348504548,1736594524754,-500.0,9.998e-05,2]
[348504549,1736594524778,-500.0,9.998e-05,2]
[348504550,1736594524803,-500.0,9.998e-05,2]
[348504551,1736594524826,-500.0,9.998e-05,2]
[348504552,1736594524849,-500.0,9.998e-05,2]
[348504553,1736594524871,-500.0,9.998e-05,2]
[348504554,1736594524894,-500.0,9.998e-05,2]
[348504555,1736594524917,-500.0,9.998e-05,2]
[348504556,1736594524940,-500.0,9.998e-05,2]
[348504557,1736594524962,-500.0,9.998e-05,2]
[348504558,1736594524984,-500.0,9.998e-05,2]
[348504559,1736594525007,-500.0,9.998e-05,2]
[348504560,1736594525029,-500.0,9.998e-05,2]
[348504561,1736594525053,-500.0,9.998e-05,2]
[348504562,1736594525079,-500.0,9.998e-05,2]
[348504563,1736594525111,-500.0,9.998e-05,2]
[348504564,1736594525137,-500.0,9.998e-05,2]
[348504565,1736594525163,-500.0,9.998e-05,2]
[348504566,1736594525188,-500.0,9.998e-05,2]
[348504567,1736594525211,-500.0,9.998e-05,2]
[348504568,1736594525235,-503.55,9.998e-05,2]
[348504569,1736594525259,-500.0,9.998e-05,2]
[348504570,1736594525281,-500.0,9.998e-05,2]
[348504571,1736594525304,-500.0,9.998e-05,2]
[348504572,1736594525327,-500.0,9.998e-05,2]
[348504573,1736594525352,-500.0,9.998e-05,2]
[348504574,1736594525375,-500.0,9.998e-05,2]
[348504575,1736594525398,-500.0,9.998e-05,2]
[348504576,1736594525420,-500.0,9.998e-05,2]
[348504577,1736594525443,-500.0,9.998e-05,2]
[348504578,1736594525466,-500.0,9.998e-05,2]
[348504579,1736594525488,-500.0,9.998e-05,2]
[348504580,1736594525510,-500.0,9.998e-05,2]
[348504581,1736594525532,-500.0,9.998e-05,2]
[348504582,1736594525557,-500.0,9.998e-05,2]
[348504583,1736594525583,-500.0,9.998e-05,2]
[348504584,1736594525606,-725.98,9.998e-05,2]
[348504585,1736594525628,-500.0,9.998e-05,2]
[348504586,1736594525651,-500.0,9.998e-05,2]
[348504587,1736594525674,-500.0,9.998e-05,2]
[348504588,1736594525700,-500.0,9.998e-05,2]
[348504589,1736594525724,-500.0,9.998e-05,2]
[348504590,1736594525747,-500.0,9.998e-05,2]
[348504591,1736594525770,-500.0,9.998e-05,2]
[348504592,1736594525795,-500.0,9.998e-05,2]
[348504593,1736594525817,-500.0,9.998e-05,2]
[348504594,1736594525842,-500.0,9.998e-05,2]
[348504595,1736594525866,-2568.02,9.998e-05,2]
[348504596,1736594525888,-500.0,9.998e-05,2]
[348504597,1736594525911,-500.0,9.998e-05,2]
[348504598,1736594525935,-500.0,9.998e-05,2]
[348504599,1736594525957,-500.0,9.998e-05,2]
[348504600,1736594525980,-500.0,9.998e-05,2]
[348504601,1736594526003,-500.0,9.998e-05,2]
[348504602,1736594526026,-500.0,9.998e-05,2]
[348504603,1736594526050,-1899.76,9.998e-05,2]
[348504604,1736594526266,-500.0,9.998e-05,2]
[348504605,1736594526289,-500.0,9.998e-05,2]
[348504606,1736594526312,-500.0,9.998e-05,2]
[348504607,1736594526337,-500.0,9.998e-05,2]
[348504608,1736594526360,-443.32,9.998e-05,2]
[348504609,1736594526383,-500.0,9.998e-05,2]
[348504610,1736594526406,-2041.24,9.998e-05,2]
[348504611,1736594526429,-500.0,9.998e-05,2]
[348504612,1736594526451,-500.0,9.998e-05,2]
[348504613,1736594526473,-500.74734278,9.999e-05,2]
[348504614,1736594526495,-500.0,9.999e-05,2]
[348504615,1736594526518,-500.0,9.999e-05,2]
[348504616,1736594526543,-500.0,9.999e-05,2]
[348504617,1736594526566,-367.43607704,9.999e-05,2]
[348504618,1736594526595,-500.0,9.999e-05,2]
[348504619,1736594526617,-500.0,9.999e-05,2]
[348504620,1736594526639,-500.0,9.999e-05,2]
[348504621,1736594526661,-500.0,9.999e-05,2]
[348504622,1736594526685,-500.0,9.999e-05,2]
[348504623,1736594526708,-500.0,9.999e-05,2]
[348504624,1736594526730,-500.0,9.999e-05,2]
[348504625,1736594526757,-2143.71,9.999e-05,2]
[348504626,1736594526780,-500.0,9.999e-05,2]
[348504627,1736594526802,-500.0,9.999e-05,2]
[348504628,1736594526825,-500.0,9.999e-05,2]
[348504629,1736594526850,-500.0,9.999e-05,2]
[348504630,1736594526878,-430.15,9.999e-05,2]
[348504631,1736594526902,-500.0,9.999e-05,2]
[348504632,1736594526924,-500.0,9.999e-05,2]
[348504633,1736594526946,-308.57473966,9.999e-05,2]
[348504634,1736594526969,-151.98,9.999e-05,2]
[348504635,1736594526992,-500.0,9.999e-05,2]
[348504636,1736594527017,-500.0,9.999e-05,2]
[348504637,1736594527042,-500.0,9.999e-05,2]
[348504638,1736594527066,-500.0,9.999e-05,2]
[348504639,1736594527093,-500.0,9.999e-05,2]
[348504640,1736594527116,-500.0,9.999e-05,2]
[348504641,1736594527139,-500.0,9.999e-05,2]
[348504642,1736594527164,-500.0,9.999e-05,2]
[348504643,1736594527187,-500.0,9.999e-05,2]
[348504644,1736594527211,-500.0,9.999e-05,2]
[348504645,1736594527234,-500.0,9.999e-05,2]
[348504646,1736594527257,-500.0,9.999e-05,2]
[348504647,1736594527279,-411.10880029,9.999e-05,2]
[348504648,1736594527302,-500.0,9.999e-05,2]
[348504649,1736594527324,-500.0,9.999e-05,2]
[348504650,1736594527346,-500.0,9.999e-05,2]
[348504651,1736594527369,-851.49,9.999e-05,2]
[348504652,1736594527392,-342.03,9.999e-05,2]
[348504653,1736594527414,-500.0,9.999e-05,2]
[348504654,1736594527437,-500.0,9.999e-05,2]
[348504655,1736594527460,-500.0,9.999e-05,2]
[348504656,1736594527488,-500.0,9.999e-05,2]
[348504657,1736594527512,-500.0,9.999e-05,2]
[348504658,1736594527534,-500.0,9.999e-05,2]
[348504659,1736594527561,-500.0,9.999e-05,2]
[348504660,1736594527584,-500.0,9.999e-05,2]
[348504661,1736594527606,-500.0,9.999e-05,2]
[348504662,1736594527628,-511.01231695,9.999e-05,2]
[348504663,1736594527654,-549.63,9.999e-05,2]
[348504664,1736594527676,-500.0,9.999e-05,2]
[348504665,1736594527698,-500.0,9.999e-05,2]
[348504666,1736594527721,-503.04233668,9.999e-05,2]
[348504667,1736594527745,-500.0,9.999e-05,2]
[348504668,1736594527769,-500.36608534,9.999e-05,2]
[348504669,1736594527792,-500.0,9.999e-05,2]
[348504670,1736594527816,-500.0,9.999e-05,2]
[348504671,1736594527838,-500.0,9.999e-05,2]
[348504672,1736594527862,-500.0,9.999e-05,2]
[348504673,1736594527885,-432.61,9.999e-05,2]
[348504674,1736594527908,-500.0,9.999e-05,2]
[348504675,1736594527931,-500.0,9.999e-05,2]
[348504676,1736594527956,-500.0,9.999e-05,2]
[348504677,1736594527979,-500.0,9.999e-05,2]
[348504678,1736594528003,-500.0,9.999e-05,2]
[348504679,1736594528028,-500.0,9.999e-05,2]
[348504680,1736594528052,-500.0,9.999e-05,2]
[348504681,1736594528079,-500.0,9.999e-05,2]
[348504682,1736594528104,-500.0,9.999e-05,2]
[348504683,1736594528127,-500.0,9.999e-05,2]
[348504684,1736594528150,-500.0,9.999e-05,2]
[348504685,1736594528172,-500.0,9.999e-05,2]
[348504686,1736594528195,-500.0,9.999e-05,2]
[348504687,1736594528219,-500.0,9.999e-05,2]
[348504688,1736594528244,-538.32368135,9.999e-05,2]
[348504689,1736594528266,-500.0,9.999e-05,2]
[348504690,1736594528289,-500.0,9.999e-05,2]
[348504691,1736594528312,-500.0,9.999e-05,2]
[348504692,1736594528338,-500.0,9.999e-05,2]
[348504693,1736594528361,-500.0,9.999e-05,2]
[348504694,1736594528385,-500.0,9.999e-05,2]
[348504695,1736594528410,-500.0,9.999e-05,2]
[348504696,1736594528436,-500.0,9.999e-05,2]
[348504697,1736594528460,-500.0,9.999e-05,2]
[348504698,1736594528484,-500.0,9.999e-05,2]
[348504699,1736594528508,-500.0,9.999e-05,2]
[348504700,1736594528532,-500.0,9.999e-05,2]
[348504701,1736594528556,-500.0,9.999e-05,2]
[348504702,1736594528583,-500.0,9.999e-05,2]
[348504703,1736594528606,-500.0,9.999e-05,2]
[348504704,1736594528630,-500.0,9.999e-05,2]
[348504705,1736594528652,-500.0,9.999e-05,2]
[348504706,1736594528677,-500.0,9.999e-05,2]
[348504707,1736594528700,-500.0,9.999e-05,2]
[348504708,1736594528723,-501.06908336,9.999e-05,2]
[348504709,1736594528746,-500.0,9.999e-05,2]
[348504710,1736594528770,-500.0,9.999e-05,2]
[348504711,1736594528793,-500.0,9.999e-05,2]
[348504712,1736594528816,-500.0,9.999e-05,2]
[348504713,1736594528842,-500.0,9.999e-05,2]
[348504714,1736594528867,-500.0,9.999e-05,2]
[348504715,1736594528899,-500.0,9.999e-05,2]
[348504716,1736594528928,-500.0,9.999e-05,2]
[348504717,1736594528951,-500.0,9.999e-05,2]
[348504718,1736594528975,-500.0,9.999e-05,2]
[348504719,1736594529003,-500.0,9.999e-05,2]
[348504720,1736594529027,-500.0,9.999e-05,2]
[348504721,1736594529051,-500.0,9.999e-05,2]
[348504722,1736594529075,-500.0,9.999e-05,2]
[348504723,1736594529100,-500.0,9.999e-05,2]
[348504724,1736594529124,-500.0,9.999e-05,2]
[348504725,1736594529147,-500.0,9.999e-05,2]
[348504726,1736594529171,-500.0,9.999e-05,2]
[348504727,1736594529196,-500.0,9.999e-05,2]
[348504728,1736594529219,-500.0,9.999e-05,2]
[348504729,1736594529244,-500.0,9.999e-05,2]
[348504730,1736594529269,-500.0,9.999e-05,2]
[348504731,1736594529293,-500.0,9.999e-05,2]
[348504732,1736594529316,-445.43617497,9.999e-05,2]
[348504733,1736594529342,-500.0,9.999e-05,2]
[348504734,1736594529365,-500.0,9.999e-05,2]
[348504735,1736594529388,-500.0,9.999e-05,2]
[348504736,1736594529411,-500.0,9.999e-05,2]
[348504737,1736594529434,-500.0,9.999e-05,2]
[348504738,1736594529457,-500.0,9.999e-05,2]
[348504739,1736594529484,-500.0,9.999e-05,2]
[348504740,1736594529508,-500.0,9.999e-05,2]
[348504741,1736594529531,-500.0,9.999e-05,2]
[348504742,1736594529557,-500.0,9.999e-05,2]
[348504743,1736594529583,-500.0,9.999e-05,2]
[348504744,1736594529608,-500.0,9.999e-05,2]
[348504745,1736594529632,-500.0,9.999e-05,2]
[348504746,1736594529657,-500.0,9.999e-05,2]
[348504747,1736594529682,-501.04,9.999e-05,2]
[348504748,1736594529707,-167.47304106,9.999e-05,2]
[348504749,1736594529731,-500.0,9.999e-05,2]
[348504750,1736594529755,-500.0,9.999e-05,2]
[348504751,1736594529779,-500.0,9.999e-05,2]
[348504752,1736594529803,-500.0,9.999e-05,2]
[348504753,1736594529828,-500.0,9.999e-05,2]
[348504754,1736594529853,-500.0,9.999e-05,2]
[348504755,1736594529877,-500.0,9.999e-05,2]
[348504756,1736594529902,-500.0,9.999e-05,2]
[348504757,1736594530201,-500.0,9.999e-05,2]
[348504758,1736594530226,-500.0,9.999e-05,2]
[348504759,1736594530248,-500.0,9.999e-05,2]
[348504760,1736594530273,-500.0,9.999e-05,2]
[348504761,1736594530297,-500.0,9.999e-05,2]
[348504762,1736594530319,-500.0,9.999e-05,2]
[348504763,1736594530344,-501.2214797,9.999e-05,2]
[348504764,1736594530368,-500.0,9.999e-05,2]
[348504765,1736594530394,-500.0,9.999e-05,2]
[348504766,1736594530418,-500.0,9.999e-05,2]
[348504767,1736594530453,-614.10131409,9.999e-05,2]
[348504768,1736594530488,-150.0,9.999e-05,2]
[348504769,1736594530521,-500.0,9.999e-05,2]
[348504770,1736594530556,-500.0,9.999e-05,2]
[348504771,1736594530590,-500.0,9.999e-05,2]
[348504772,1736594530626,-500.0,9.999e-05,2]
[348504773,1736594530663,-5000.0,9.999e-05,2]
[348504774,1736594530700,-500.0,9.999e-05,2]
[348504775,1736594530735,-500.0,9.999e-05,2]
[348504776,1736594530769,-500.0,9.999e-05,2]
[348504777,1736594530801,-500.0,9.999e-05,2]
[348504778,1736594530824,-500.0,9.999e-05,2]
[348504779,1736594530849,-500.0,9.999e-05,2]
[348504780,1736594530876,-500.0,9.999e-05,2]
[348504781,1736594530900,-500.0,9.999e-05,2]
[348504782,1736594530926,-500.0,9.999e-05,2]
[348504783,1736594530951,-500.0,9.999e-05,2]
[348504784,1736594530976,-500.0,9.999e-05,2]
[348504785,1736594530999,-500.0,9.999e-05,2]
[348504786,1736594531022,-500.0,9.999e-05,2]
[348504787,1736594531045,-292.52,9.999e-05,2]
[348504788,1736594531067,-500.0,9.999e-05,2]
[348504789,1736594531092,-500.0,9.999e-05,2]
[348504790,1736594531115,-500.0,9.999e-05,2]
[348504791,1736594531139,-930.92,9.999e-05,2]
[348504792,1736594531161,-500.0,9.999e-05,2]
[348504793,1736594531184,-500.0,9.999e-05,2]
[348504794,1736594531206,-500.0,9.999e-05,2]
[348504795,1736594531228,-500.0,9.999e-05,2]
[348504796,1736594531250,-500.0,9.999e-05,2]
[348504797,1736594531272,-500.0,9.999e-05,2]
[348504798,1736594531296,-500.0,9.999e-05,2]
[348504799,1736594531318,-500.0,9.999e-05,2]
[348504800,1736594531342,-500.0,9.999e-05,2]
[348504801,1736594531366,-1270.32,9.999e-05,2]
[348504802,1736594531390,-2521.98,9.999e-05,2]
[348504803,1736594531414,-500.0,9.999e-05,2]
[348504804,1736594531437,-500.0,9.999e-05,2]
[348504805,1736594531460,-500.0,9.999e-05,2]
[348504806,1736594531484,-500.0,9.999e-05,2]
[348504807,1736594531507,-500.0,9.999e-05,2]
[348504808,1736594531529,-500.0,9.999e-05,2]
[348504809,1736594531558,-500.0,9.999e-05,2]
[348504810,1736594531585,-500.0,9.999e-05,2]
[348504811,1736594531610,-500.0,9.999e-05,2]
[348504812,1736594531636,-500.0,9.999e-05,2]
[348504813,1736594531660,-500.0,9.999e-05,2]
[348504814,1736594531685,-500.0,9.999e-05,2]
[348504815,1736594531711,-931.18,9.999e-05,2]
[348504816,1736594531734,-500.0,9.999e-05,2]
[348504817,1736594531757,-500.0,9.999e-05,2]
[348504818,1736594531779,-500.0,9.999e-05,2]
[348504819,1736594531803,-500.0,9.999e-05,2]
[348504820,1736594531829,-500.0,9.999e-05,2]
[348504821,1736594531853,-500.0,9.999e-05,2]
[348504822,1736594531877,-614.64,9.999e-05,2]
[348504823,1736594531900,-500.0,9.999e-05,2]
[348504824,1736594531923,-500.0,9.999e-05,2]
[348504825,1736594531946,-500.0,9.999e-05,2]
[348504826,1736594531969,-795.32,9.999e-05,2]
[348504827,1736594531993,-2117.45,9.999e-05,2]
[348504828,1736594532016,-628.63,9.999e-05,2]
[348504829,1736594532040,-2164.58,9.999e-05,2]
[348504830,1736594532064,-857.63,9.999e-05,2]
[348504831,1736594532091,-758.46,9.999e-05,2]
[348504832,1736594532116,-1202.91,9.999e-05,2]
[348504833,1736594532139,-1049.09,9.999e-05,2]
[348504834,1736594532162,-500.0,9.999e-05,2]
[348504835,1736594532187,-1204.65,9.999e-05,2]
[348504836,1736594532212,-805.49,9.999e-05,2]
[348504837,1736594532236,-500.0,9.999e-05,2]
[348504838,1736594532261,-1156.02,9.999e-05,2]
[348504839,1736594532285,-895.76,9.999e-05,2]
[348504840,1736594532307,-314.99246216,9.999e-05,2]
[348504841,1736594532330,-500.62319932,9.999e-05,2]
[348504842,1736594532356,-500.0,9.999e-05,2]
[348504843,1736594532379,-500.0,9.999e-05,2]
[348504844,1736594532403,-500.0,9.999e-05,2]
[348504845,1736594532426,-209.02346604,9.999e-05,2]
[348504846,1736594532450,-308.96823629,9.999e-05,2]
[348504847,1736594532476,-500.0,9.999e-05,2]
[348504848,1736594532500,-500.0,9.999e-05,2]
[348504849,1736594532524,-381.54278652,9.999e-05,2]
[348504850,1736594532550,-500.0,9.999e-05,2]
[348504851,1736594532577,-620.89988492,9.999e-05,2]
[348504852,1736594532604,-750.0,0.0001,2]
[348504853,1736594532629,-1880464.54255785,0.0001,2]
[348504854,1736594532654,-2006176.450848,0.0001,2]
[348504855,1736594532677,-225.05,0.0001,2]
[348504856,1736594532709,-600.0,0.0001,2]
[348504857,1736594532740,-1151436.42665123,0.0001,2]
[348504858,1736594714629,749.1372459,0.000121,30]
[348504861,1736594768028,471.26138293,8e-05,2]
[348504876,1736595032305,-900.0,8.568e-05,2]
[348504878,1736595032314,-500.0,8.568e-05,2]
[348504880,1736595032323,-500.0,8.568e-05,2]
[348504881,1736595032332,-1000.0,8.807e-05,2]
[348504882,1736595032342,-200.0,8.824e-05,2]
[348504883,1736595032351,-300.0,8.876e-05,2]
[348504884,1736595032360,-1935.22,8.876e-05,2]
[348504885,1736595032369,-1287.02,8.877e-05,2]
[348504886,1736595032379,-23900.0,8.888e-05,2]
[348504887,1736595032388,-585.55,8.892e-05,2]
[348504888,1736595032399,-468.0,9e-05,2]
[348504889,1736595032408,-301.42358223,9e-05,3]
[348504890,1736595032417,-250.0,9.081e-05,2]
[348504891,1736595032428,-203.51,9.5e-05,2]
[348504892,1736595032438,-400.0,9.5e-05,3]
[348504893,1736595032448,-922.489821,9.53e-05,2]
[348504894,1736595032459,-329.38495521,9.53e-05,2]
[348504895,1736595032469,-1251.87477621,9.53e-05,2]
[348504896,1736595032478,-800.0,9.6e-05,3]
[348504897,1736595032488,-1200.0,9.7e-05,3]
[348504898,1736595032496,-150.0,9.73e-05,2]
[348504899,1736595032505,-150.0,9.732e-05,2]
[348504900,1736595032514,-150.0,9.735e-05,2]
[348504901,1736595032523,-150.0,9.741e-05,2]
[348504902,1736595032533,-150.0,9.755e-05,2]
[348504903,1736595032542,-150.0,9.756e-05,2]
[348504904,1736595032551,-150.0,9.759e-05,2]
[348504905,1736595032560,-420.0,9.764e-05,2]
[348504906,1736595032570,-150.0,9.77e-05,2]
[348504907,1736595032579,-150.0,9.771e-05,2]
[348504908,1736595032590,-150.0,9.773e-05,2]
[348504909,1736595032599,-150.0,9.773e-05,2]
[348504910,1736595032608,-150.0,9.782e-05,2]
[348504911,1736595032617,-1500.0,9.785e-05,2]
[348504912,1736595032626,-150.0,9.786e-05,2]
[348504913,1736595032636,-150.0,9.788e-05,2]
[348504914,1736595032645,-150.0,9.792e-05,2]
[348504915,1736595032654,-150.0,9.793e-05,2]
[348504916,1736595032663,-220.2511,9.799e-05,2]
[348504917,1736595032672,-4951.6813,9.799e-05,2]
[348504918,1736595032682,-265.5776,9.799e-05,2]
[348504919,1736595032691,-4131.929,9.799e-05,2]
[348504920,1736595032700,-3371.0857,9.799e-05,2]
[348504921,1736595032709,-2559.8444,9.799e-05,2]
[348504922,1736595032719,-1000.0,9.799e-05,2]
[348504923,1736595032728,-1600.0,9.8e-05,3]
[348504924,1736595032737,-150.0,9.806e-05,2]
[348504925,1736595032747,-150.0,9.806e-05,2]
[348504926,1736595032757,-150.0,9.807e-05,2]
[348504927,1736595032766,-150.0,9.811e-05,2]
[348504928,1736595032776,-150.0,9.817e-05,2]
[348504929,1736595032786,-150.0,9.82e-05,2]
[348504930,1736595032795,-150.0,9.823e-05,2]
[348504931,1736595032804,-150.0,9.83e-05,2]
[348504932,1736595032813,-150.0,9.831e-05,2]
[348504933,1736595032822,-150.0,9.844e-05,2]
[348504934,1736595032832,-150.0,9.846e-05,2]
[348504935,1736595032842,-150.0,9.854e-05,2]
[348504936,1736595032853,-150.0,9.855e-05,2]
[348504937,1736595032862,-1500.0,9.863e-05,2]